[Event "Icelandic Championship 2024"]
[Site "Mosfellsbaer"]
[Date "2024.04.24"]
[Round "8.6"]
[White "Ptacnikova, Lenka"]
[Black "Ragnarsson, Dagur"]
[Result "0-1"]
[ECO "D00"]
[WhiteElo "2127"]
[BlackElo "2333"]
[Annotator "ChessBase"]
[PlyCount "176"]
[EventDate "2024.04.16"]
[EventType "tourn"]
[EventCountry "ISL"]
[SourceTitle "playchess.com"]
[Source "ChessBase"]
[SourceQuality "1"]
[TimeControl "40/5400+30:1800+30"]

1. d4 {[%emt 0:00:08]} d5 {[%emt 0:00:09]} 2. Nc3 {[%emt 0:00:27]} Nf6 {[%emt 0:00:08]} 3. Bf4 {[%emt 0:00:06]} e6 {[%emt 0:00:27]} 4. e3 {[%emt 0:00:11]} Bb4 {[%emt 0:00:22]} 5. Bd3 {[%emt 0:01:43]} c5 {[%emt 0:01:28]} 6. dxc5 {[%emt 0:00:05]} Nbd7 {[%emt 0:00:45]} 7. Nge2 {[%emt 0:00:15]} a6 {[%emt 0:01:01]} 8. Bg3 {[%emt 0:00:03]} Nh5 {[%emt 0:01:37]} 9. e4 {[%emt 0:02:37]} Nxg3 {[%emt 0:03:29]} 10. hxg3 {[%emt 0:00:05]} dxe4 {[%emt 0:00:07]} 11. Bxe4 {[%emt 0:00:04]} Bxc5 {[%emt 0:00:07]} 12. Nf4 {[%emt 0:00:11]} Qb6 {[%emt 0:00:14]} 13. Nd3 {[%emt 0:00:04]} Bd4 {[%emt 0:00:04]} 14. Qd2 {[%emt 0:00:23]} Nf6 {[%emt 0:00:07]} 15. Bf3 {[%emt 0:02:06]} e5 {[%emt 0:00:58]} 16. O-O-O {[%emt 0:22:00]} Be6 {[%emt 0:04:48]} 17. Qg5 {[%emt 0:20:00]} O-O-O {[%emt 0:06:55]} 18. Ne2 {[%emt 0:05:56]} e4 {[%emt 0:29:37]} 19. Nxd4 {[%emt 0:00:23]} Qxd4 {[%emt 0:00:06]} 20. Nf4 {[%emt 0:15:20]} Qc4 {[%emt 0:06:30]} 21. Nxe6 {[%emt 0:01:25]} fxe6 {[%emt 0:06:58]} 22. Rxd8+ {[%emt 0:08:36]} Rxd8 {[%emt 0:00:08]} 23. Bd1 {[%emt 0:01:10]} Qxa2 {[%emt 0:02:42]} 24. c3 {[%emt 0:02:05]} Rd5 {[%emt 0:14:31]} 25. Qxg7 {[%emt 0:02:04]} Nd7 {[%emt 0:00:30]} 26. Bc2 {[%emt 0:04:24]} Qa1+ {[%emt 0:02:23]} 27. Bb1 {[%emt 0:00:02]} Nc5 {[%emt 0:00:06]} 28. c4 {[%emt 0:03:25]} Nd3+ {[%emt 0:02:59]} 29. Kc2 {[%emt 0:02:57]} e5 {[%emt 0:11:11]} 30. Qf8+ {[%emt 0:01:36]} Rd8 {[%emt 0:00:06]} 31. Qa3 {[%emt 0:00:30]} Qxa3 {[%emt 0:00:07]} 32. bxa3 {[%emt 0:00:02]} Nxf2 {[%emt 0:00:28]} 33. Re1 {[%emt 0:02:14]} Rd3 {[%emt 0:02:52]} 34. Rxe4 {[%emt 0:02:01]} Nxe4 {[%emt 0:01:18]} 35. Kxd3 {[%emt 0:00:05]} Nc5+ {[%emt 0:00:50]} 36. Ke3 {[%emt 0:00:33]} h6 {[%emt 0:00:04]} 37. Kf3 {[%emt 0:02:07]} Kd7 {[%emt 0:00:05]} 38. Kg4 {[%emt 0:00:22]} Ke6 {[%emt 0:00:05]} 39. Bf5+ {[%emt 0:00:44]} Kf6 {[%emt 0:00:17]} 40. Bc2 {[%emt 0:01:08]} b6 {[%emt 0:01:18]} 41. Kh5 {[%emt 0:03:34]} Kg7 {[%emt 0:09:56]} 42. Kg4 {[%emt 0:06:06]} Ne6 {[%emt 0:01:47]} 43. Be4 {[%emt 0:01:03]} Kf6 {[%emt 0:00:58]} 44. Bb7 {[%emt 0:01:24]} a5 {[%emt 0:00:10]} 45. Kf3 {[%emt 0:02:04]} Nd4+ {[%emt 0:07:02]} 46. Ke4 {[%emt 0:00:56]} Nf5 {[%emt 0:00:06]} 47. Kf3 {[%emt 0:00:24]} Nd6 {[%emt 0:02:18]} 48. Bd5 {[%emt 0:00:35]} Kf5 {[%emt 0:00:43]} 49. g4+ {[%emt 0:01:54]} Kg5 {[%emt 0:00:27]} 50. Be6 {[%emt 0:00:22]} e4+ {[%emt 0:06:55]} 51. Ke3 {[%emt 0:00:08]} Kf6 {[%emt 0:00:04]} 52. Bd5 {[%emt 0:11:15]} Ke5 {[%emt 0:00:05]} 53. a4 {[%emt 0:00:28]} b5 {[%emt 0:03:07]} 54. axb5 {[%emt 0:00:35]} a4 {[%emt 0:01:30]} 55. Bg8 {[%emt 0:01:16]} a3 {[%emt 0:00:22]} 56. c5 {[%emt 0:00:06]} Nxb5 {[%emt 0:00:04]} 57. c6 {[%emt 0:01:13]} Nc7 {[%emt 0:01:11]} 58. Ba2 {[%emt 0:01:41]} Ne8 {[%emt 0:01:24]} 59. Bb3 {[%emt 0:01:43]} Nd6 {[%emt 0:00:20]} 60. Ba2 {[%emt 0:00:50]} Kf6 {[%emt 0:00:49]} 61. Kd4 {[%emt 0:03:05]} Ke7 {[%emt 0:00:14]} 62. Bb3 {[%emt 0:00:25]} Kd8 {[%emt 0:00:21]} 63. Bd5 {[%emt 0:00:39]} Kc7 {[%emt 0:00:10]} 64. Kc3 {[%emt 0:00:22]} Kb6 {[%emt 0:00:39]} 65. Kb3 {[%emt 0:00:13]} Kc5 {[%emt 0:01:19]} 66. Bxe4 {[%emt 0:00:18]} Nxe4 {[%emt 0:00:08]} 67. c7 {[%emt 0:00:03]} Nd6 {[%emt 0:00:06]} 68. Kxa3 {[%emt 0:00:04]} Nb5+ {[%emt 0:00:32]} 69. Kb3 {[%emt 0:00:07]} Nxc7 {[%emt 0:00:04]} 70. Kc3 {[%emt 0:00:05]} Kd5 {[%emt 0:00:08]} 71. Kd3 {[%emt 0:00:04]} Ke5 {[%emt 0:00:06]} 72. Ke3 {[%emt 0:00:02]} Kf6 {[%emt 0:00:44]} 73. Kf4 {[%emt 0:00:03]} Ne6+ {[%emt 0:00:05]} 74. Kg3 {[%emt 0:00:41]} Kg5 {[%emt 0:00:06]} 75. Kh3 {[%emt 0:00:16]} Ng7 {[%emt 0:00:23]} 76. Kg3 {[%emt 0:00:07]} Ne8 {[%emt 0:00:04]} 77. Kh3 {[%emt 0:00:54]} Nf6 {[%emt 0:00:08]} 78. Kg3 {[%emt 0:00:38]} Nxg4 {[%emt 0:00:06]} 79. Kh3 {[%emt 0:00:07]} Ne3 {[%emt 0:01:33]} 80. Kg3 {[%emt 0:00:09]} Nf5+ {[%emt 0:00:13]} 81. Kh3 {[%emt 0:00:32]} h5 {[%emt 0:01:13]} 82. Kh2 {[%emt 0:00:13]} Kg4 {[%emt 0:00:10]} 83. Kh1 {[%emt 0:04:25]} Kg3 {[%emt 0:00:11]} 84. Kg1 {[%emt 0:00:06]} Ne3 {[%emt 0:00:29]} 85. Kh1 {[%emt 0:00:04]} Nxg2 {[%emt 0:00:14]} 86. Kg1 {[%emt 0:00:02]} Ne3 {[%emt 0:00:32]} 87. Kh1 {[%emt 0:00:18]} Ng4 {[%emt 0:00:05]} 88. Kg1 {[%emt 0:00:02]} Nf2 {[%emt 0:00:18]} 0-1

[Event "Icelandic Championship 2024"]
[Site "Mosfellsbaer"]
[Date "2024.04.25"]
[Round "9.2"]
[White "Gretarsson, Hjorvar Steinn"]
[Black "Ptacnikova, Lenka"]
[Result "1-0"]
[ECO "B36"]
[WhiteElo "2518"]
[BlackElo "2127"]
[Annotator "RC"]
[PlyCount "71"]
[EventDate "2024.04.16"]
[EventType "tourn"]
[EventCountry "ISL"]
[SourceTitle "playchess.com"]
[Source "ChessBase"]
[SourceQuality "1"]
[TimeControl "40/5400+30:1800+30"]

1. c4 {[%emt 0:00:04]} c5 {[%emt 0:00:17]} 2. Nf3 {[%emt 0:00:08]} g6 {[%emt 0:00:40]} 3. e4 {[%emt 0:00:09]} Nc6 {[%emt 0:00:44]} 4. d4 {[%emt 0:00:17]} cxd4 {[%emt 0:00:03]} 5. Nxd4 {[%emt 0:00:04]} Nf6 {[%emt 0:00:12]} 6. Nc3 {[%emt 0:00:12]} d6 {[%emt 0:00:26]} 7. Nc2 {[%emt 0:01:16]} a5 {[%emt 0:04:09]} 8. Be2 {[%emt 0:01:56]} Bg7 {[%emt 0:00:17]} 9. O-O {[%emt 0:00:54]} a4 {[%emt 0:04:26]} 10. Be3 {[%emt 0:02:18]} Be6 {[%emt 0:01:39]} 11. Rc1 {[%emt 0:04:27]} O-O {[%emt 0:02:47]} 12. h3 {[%emt 0:04:23]} Nd7 {[%emt 0:06:52]} 13. Qd2 {[%emt 0:02:38]} Na5 {[%emt 0:11:47]} 14. Na3 {[%emt 0:03:01]} Nc5 {[%emt 0:05:25]} 15. f3 {[%emt 0:04:53]} f5 {[%emt 0:00:05]} 16. exf5 {[%emt 0:00:49]} gxf5 {[%emt 0:00:07]} 17. Rfd1 {[%emt 0:01:33]} Nc6 {[%emt 0:05:45]} 18. Nab5 {[%emt 0:05:35]} Kh8 {[%emt 0:10:11]} 19. Nd5 {[%emt 0:01:38]} Rc8 {[%emt 0:01:40]} 20. Bf1 {[%emt 0:02:43]} Ne5 {[%emt 0:05:44]} 21. Nd4 {[%emt 0:08:42]} Bd7 {[%emt 0:08:49]} 22. Re1 {[%emt 0:01:33]} Ng6 {[%emt 0:01:44]} 23. Bg5 {[%emt 0:02:14]} Rf7 {[%emt 0:00:51]} 24. h4 {[%emt 0:03:59]} Bf8 {[%emt 0:05:37]} 25. h5 {[%emt 0:01:47]} Ne5 {[%emt 0:00:06]} 26. h6 {[%emt 0:01:04]} Bc6 {[%emt 0:05:36]} 27. Kh1 {[%emt 0:03:07]} Ra8 {[%emt 0:01:32]} 28. b4 {[%emt 0:01:58]} axb3 {[%emt 0:00:03]} 29. axb3 {[%emt 0:00:19]} Bxd5 {[%emt 0:04:18]} 30. cxd5 {[%emt 0:00:08]} Qb6 {[%emt 0:02:33]} 31. Qc3 {[%emt 0:03:17]} Kg8 {[%emt 0:01:51]} 32. Ra1 {[%emt 0:05:23]} Rb8 {[%emt 0:00:39]} 33. Ne6 {[%emt 0:00:56]} Qxb3 {[%emt 0:01:17]} 34. Qxb3 {[%emt 0:00:08]} Nxb3 {[%emt 0:00:03]} 35. Ra3 {[%emt 0:00:16]} Nc5 {[%emt 0:00:57]} 36. Nxc5 {[%emt 0:00:11]} 1-0

[Event "Icelandic Championship 2024"]
[Site "Mosfellsbaer"]
[Date "2024.04.25"]
[Round "9.3"]
[White "Prudnykova, Olga"]
[Black "Birkisson, Bardur Orn"]
[Result "1/2-1/2"]
[ECO "C36"]
[WhiteElo "2263"]
[BlackElo "2169"]
[Annotator "RC"]
[PlyCount "112"]
[EventDate "2024.04.16"]
[EventType "tourn"]
[EventCountry "ISL"]
[SourceTitle "playchess.com"]
[Source "ChessBase"]
[SourceQuality "1"]
[TimeControl "40/5400+30:1800+30"]

1. e4 {[%emt 0:00:02]} e5 {[%emt 0:00:18]} 2. f4 {[%emt 0:00:05]} d5 {[%emt 0:01:53]} 3. exd5 {[%emt 0:00:08]} exf4 {[%emt 0:00:37]} 4. Nf3 {[%emt 0:00:10]} Nf6 {[%emt 0:00:48]} 5. c4 {[%emt 0:00:07]} c6 {[%emt 0:01:28]} 6. d4 {[%emt 0:00:08]} Bb4+ {[%emt 0:05:32]} 7. Nc3 {[%emt 0:00:08]} cxd5 {[%emt 0:00:43]} 8. Bxf4 {[%emt 0:02:38]} O-O {[%emt 0:02:49]} 9. Be2 {[%emt 0:00:29]} dxc4 {[%emt 0:19:44]} 10. O-O {[%emt 0:00:52]} Nd5 {[%emt 0:10:23]} 11. Nxd5 {[%emt 0:09:42]} Qxd5 {[%emt 0:00:08]} 12. Ne5 {[%emt 0:01:48]} Nc6 {[%emt 0:03:47]} 13. Bxc4 {[%emt 0:08:43]} Qxd4+ {[%emt 0:00:34]} 14. Qxd4 {[%emt 0:00:05]} Nxd4 {[%emt 0:00:10]} 15. Bxf7+ {[%emt 0:06:15]} Kh8 {[%emt 0:11:39]} 16. Rad1 {[%emt 0:40:04]} Ne2+ {[%emt 0:07:32]} 17. Kh1 {[%emt 0:00:04]} Nxf4 {[%emt 0:00:05]} 18. Rxf4 {[%emt 0:00:05]} Be7 {[%emt 0:00:06]} 19. Rdf1 {[%emt 0:16:11]} g5 {[%emt 0:02:01]} 20. R4f3 {[%emt 0:00:35]} Kg7 {[%emt 0:01:00]} 21. Bd5 {[%emt 0:00:34]} Rxf3 {[%emt 0:02:00]} 22. Rxf3 {[%emt 0:00:13]} Bf6 {[%emt 0:00:22]} 23. Nc4 {[%emt 0:01:49]} Rb8 {[%emt 0:12:18]} 24. h3 {[%emt 0:03:26]} Bd7 {[%emt 0:04:44]} 25. Rb3 {[%emt 0:02:46]} b5 {[%emt 0:00:49]} 26. Nd6 {[%emt 0:01:13]} Be7 {[%emt 0:01:09]} 27. Ne4 {[%emt 0:00:23]} Rf8 {[%emt 0:00:39]} 28. Rc3 {[%emt 0:00:59]} Rc8 {[%emt 0:04:18]} 29. Rf3 {[%emt 0:00:20]} Be8 {[%emt 0:02:13]} 30. Rf5 {[%emt 0:01:21]} Bg6 {[%emt 0:01:02]} 31. Re5 {[%emt 0:00:29]} Rc1+ {[%emt 0:00:19]} 32. Kh2 {[%emt 0:00:02]} Bd8 {[%emt 0:00:42]} 33. g3 {[%emt 0:01:26]} Rc2+ {[%emt 0:00:18]} 34. Kg1 {[%emt 0:00:35]} Bxe4 {[%emt 0:03:58]} 35. Rxe4 {[%emt 0:00:54]} Rxb2 {[%emt 0:00:23]} 36. Re8 {[%emt 0:01:20]} Bb6+ {[%emt 0:00:54]} 37. Kf1 {[%emt 0:00:05]} h5 {[%emt 0:00:45]} 38. g4 {[%emt 0:00:38]} hxg4 {[%emt 0:00:40]} 39. hxg4 {[%emt 0:00:02]} Rf2+ {[%emt 0:00:21]} 40. Ke1 {[%emt 0:00:03]} Rf4 {[%emt 0:00:39]} 41. Re7+ {[%emt 0:30:32]} Kf6 {[%emt 0:07:09]} 42. Re6+ {[%emt 0:00:00]} Kg7 {[%emt 0:00:08]} 43. Re7+ {[%emt 0:00:00]} Kf8 {[%emt 0:00:26]} 44. Re4 {[%emt 0:00:00]} a5 {[%emt 0:05:03]} 45. Bc6 {[%emt 0:00:00]} b4 {[%emt 0:01:18]} 46. Rxf4+ {[%emt 0:00:00]} gxf4 {[%emt 0:00:08]} 47. g5 {[%emt 0:00:00]} Bd8 {[%emt 0:06:10]} 48. g6 {[%emt 0:00:00]} Kg7 {[%emt 0:00:06]} 49. Be4 {[%emt 0:00:00]} Kh6 {[%emt 0:00:36]} 50. Kd2 {[%emt 0:00:00]} Bf6 {[%emt 0:01:24]} 51. Kc2 {[%emt 0:00:00]} a4 {[%emt 0:01:59]} 52. Bc6 {[%emt 0:00:00]} Kxg6 {[%emt 0:07:47]} 53. Bxa4 {[%emt 0:00:00]} Kf5 {[%emt 0:00:40]} 54. Kd2 {[%emt 0:00:00]} Kg4 {[%emt 0:00:56]} 55. Ke2 {[%emt 0:00:00]} Kg3 {[%emt 0:00:07]} 56. Bc6 {[%emt 0:00:00]} Be5 {[%emt 0:00:20]} 1/2-1/2

[Event "Icelandic Championship 2024"]
[Site "Mosfellsbaer"]
[Date "2024.04.25"]
[Round "9.4"]
[White "Heimisson, Hilmir Freyr"]
[Black "Stefansson, Vignir Vatnar"]
[Result "1-0"]
[ECO "B90"]
[WhiteElo "2361"]
[BlackElo "2459"]
[Annotator "TA"]
[PlyCount "189"]
[EventDate "2024.04.16"]
[EventType "tourn"]
[EventCountry "ISL"]
[SourceTitle "playchess.com"]
[Source "ChessBase"]
[SourceQuality "1"]
[TimeControl "40/5400+30:1800+30"]

{[%evp 80,189,552,565,568,561,554,566,528,426,424,431,441,400,472,510,506,483,506,498,566,569,577,564,506,0,445,425,455,453,444,442,400,405,429,429,429,406,422,0,408,0,415,424,424,424,511,480,499,472,481,429,527,545,529,542,530,528,625,633,634,613,640,608,640,614,712,693,687,568,29965,29963,29968,29970,29972,29973,29972,29974,29974,29975,29977,29974,29975,29974,29976,29977,29978,29980,29981,29979,29980,29981,29981,29982,29984,29985,29986,29986,29986,29987,29987,29988,29988,29988,29988,29987,29990,29991,29991,29992,29992,29993]} 1. e4 {[%emt 0:00:12]} c5 {[%emt 0:05:00]} 2. Nf3 {[%emt 0:00:13]} d6 {[%emt 0:00:59]} 3. d4 {[%emt 0:00:44]} cxd4 {[%emt 0:00:18]} 4. Nxd4 {[%emt 0:00:08]} Nf6 {[%emt 0:00:09]} 5. Nc3 {[%emt 0:00:07]} a6 {[%emt 0:00:46]} 6. Be3 {[%emt 0:07:22]} Nc6 {[%emt 0:06:10]} 7. f3 {[%emt 0:06:23]} h5 {[%emt 0:00:36] B90: Sicilian Najdorf: Unusual White 6th moves, 6 Be3 Ng4 and 6 Be3 e5.} 8. Bc4 {[%emt 0:03:39]} e6 {[%emt 0:00:29]} 9. Qe2 {[%emt 0:01:21]} Bd7 {[%emt 0:02:09]} 10. O-O-O {[%emt 0:03:21]} Be7 {[%emt 0:02:27]} 11. Bb3 {[%emt 0:03:30]} Qa5 {[%emt 0:02:47]} 12. Kb1 {[%emt 0:07:03]} Rc8 {[%emt 0:00:26]} 13. Rhe1 $146 {[%emt 0:03:51]} ({Predecessor:} 13. h3 h4 14. f4 Nh5 15. Rhe1 Ng3 16. Qf3 Qh5 17. Qxh5 Rxh5 18. Nf3 Na5 19. Bf2 Nxb3 20. axb3 {0-1 Liang,J (2340)-Cordova,E (2592) Titled Tuesday intern op 19th May blitz 2020 (1)}) 13... Kf8 {[%emt 0:07:51]} 14. Qf1 {[%emt 0:07:38]} Nd8 {[%emt 0:06:23]} 15. f4 {[%emt 0:04:08]} Ng4 {[%emt 0:14:44]} 16. Bg1 {[%emt 0:01:49]} Rxc3 {[%emt 0:12:12]} 17. bxc3 {[%emt 0:00:52]} Qxc3 {[%emt 0:00:05]} 18. Qf3 {[%emt 0:07:14]} Qxf3 {[%emt 0:02:48]} 19. Nxf3 {[%emt 0:00:45]} Bc6 {[%emt 0:00:51]} 20. Bb6 {[%emt 0:02:23]} Ke8 {[%emt 0:01:47]} 21. c4 {[%emt 0:01:38]} Nf6 {[%emt 0:01:12]} 22. Bc2 {[%emt 0:01:06]} Nd7 {[%emt 0:01:05]} 23. Bc7 {[%emt 0:01:26]} Nc5 {[%emt 0:02:48]} 24. Bxd6 {[%emt 0:02:26]} Bxd6 {[%emt 0:00:10]} 25. Rxd6 {[%emt 0:00:04]} Ke7 {[%emt 0:00:12]} 26. Rd2 {[%emt 0:00:16]} f6 {[%emt 0:02:15]} 27. Re3 {[%emt 0:10:42]} Nf7 {[%emt 0:07:20]} 28. Nh4 {[%emt 0:02:02]} Rh6 {[%emt 0:03:24]} 29. e5 {[%emt 0:02:41]} fxe5 {[%emt 0:00:35]} 30. fxe5 {[%emt 0:06:29]} Nd7 {[%emt 0:02:46]} 31. Ng6+ {[%emt 0:04:24]} Ke8 {[%emt 0:02:03]} 32. h4 {[%emt 0:01:00]} Nb6 {[%emt 0:00:15]} 33. Rd4 {[%emt 0:01:57]} Bxg2 {[%emt 0:01:36]} 34. Nf4 {[%emt 0:00:09]} Bc6 {[%emt 0:02:07]} 35. Bg6 {[%emt 0:00:12]} Ke7 {[%emt 0:01:08]} 36. Bxh5 {[%emt 0:00:45]} Nd7 {[%emt 0:05:25]} 37. Bxf7 {[%emt 0:04:55]} Kxf7 {[%emt 0:00:06]} 38. Nh3 {[%emt 0:00:36]} Nf8 {[%emt 0:01:40]} 39. Ng5+ {[%emt 0:00:57]} Ke7 {[%emt 0:00:09]} 40. Rf4 {[%emt 0:01:52]} Be8 {[%emt 0:04:09]} (40... Nd7 {keeps fighting.} 41. Rf7+ Ke8) 41. Rb3 $18 {[%emt 0:08:19]} Bc6 {[%emt 0:03:52]} 42. Rf7+ {[%emt 0:08:56]} Ke8 {[%emt 0:00:05]} 43. Rxg7 {[%emt 0:00:05]} Ng6 {[%emt 0:00:03]} 44. Rg8+ {[%emt 0:05:51]} Ke7 {[%emt 0:00:18]} 45. Re3 {[%emt 0:01:20]} Nxh4 {[%emt 0:02:04]} 46. Rh3 {[%emt 0:00:52]} Rg6 {[%emt 0:06:14]} 47. Rxg6 {[%emt 0:01:18]} Nxg6 {[%emt 0:00:04]} 48. Rh7+ {[%emt 0:00:13]} Ke8 {[%emt 0:06:57]} 49. Rh6 {[%emt 0:01:01]} ({Less strong is} 49. Nxe6 Nxe5 50. Nc5 Nxc4 51. Rh8+ (51. Nxb7 $2 Be4+ 52. Ka1 Bxh7 $19) 51... Ke7 52. Nxb7 Bd5 53. Rh7+ Ke6 $18) 49... Nf4 {[%emt 0:00:05]} 50. Nxe6 {[%emt 0:01:00]} Nd3 {[%emt 0:01:40]} 51. Ng5 {[%emt 0:00:38]} Kf8 {[%emt 0:00:04]} 52. Ne6+ {[%emt 0:01:44]} Ke8 $1 {[%emt 0:02:09]} 53. Nd4 {[%emt 0:00:29]} Be4 {[%emt 0:00:27]} 54. Ka1 {[%emt 0:00:38]} Kf7 {[%emt 0:02:39]} 55. Rh4 {[%emt 0:00:32]} Bg6 {[%emt 0:00:36]} 56. Nf3 {[%emt 0:00:56]} ({Resist} 56. e6+ Ke7 57. Rh8 a5 $18) 56... Ke6 {[%emt 0:00:12]} 57. Rh6 {[%emt 0:00:19]} Kf7 {[%emt 0:00:02]} 58. Rh1 {[%emt 0:02:04]} Ke6 {[%emt 0:00:49]} 59. Rh6 {[%emt 0:00:03]} Kf7 $1 {[%emt 0:00:00]} 60. Rh1 {[%emt 0:00:06]} Ke6 {[%emt 0:00:00]} 61. Rb1 {[%emt 0:01:04]} Be4 {[%emt 0:01:03]} 62. Rb6+ {[%emt 0:00:48]} Kd7 {[%emt 0:01:00]} 63. Rd6+ {[%emt 0:00:49]} Ke7 {[%emt 0:02:31]} 64. Ng5 {[%emt 0:00:10]} Bf5 {[%emt 0:01:53]} 65. Rf6 {[%emt 0:00:09]} Bg4 {[%emt 0:00:03]} 66. Rf7+ {[%emt 0:01:12]} Ke8 {[%emt 0:00:02]} 67. Rxb7 {[%emt 0:00:46]} Nxe5 {[%emt 0:00:02]} 68. c5 {[%emt 0:00:27]} Bd7 {[%emt 0:01:01]} 69. Ra7 {[%emt 0:00:58]} Nd3 {[%emt 0:03:23]} 70. Ne4 {[%emt 0:00:33]} (70. Rxa6 Nxc5 71. Ra5 Na4 $18) 70... Bc6 {[%emt 0:00:19]} 71. Nd6+ {[%emt 0:00:13]} Kd8 {[%emt 0:00:05]} 72. Rxa6 {[%emt 0:00:10]} Kd7 {[%emt 0:00:04]} 73. Ra7+ {[%emt 0:00:57]} Ke6 {[%emt 0:00:04]} 74. Ra5 {[%emt 0:00:46]} Nxc5 {[%emt 0:06:42]} 75. Nf5 {[%emt 0:01:14]} Be4 {[%emt 0:00:48]} 76. Ng3 {[%emt 0:00:37]} Nb7 {[%emt 0:00:05]} 77. Ra6+ {[%emt 0:00:07]} Ke5 {[%emt 0:00:02]} 78. Nxe4 {[%emt 0:00:06]} Kxe4 {[%emt 0:00:04]} 79. Kb2 {[%emt 0:00:21]} Kd5 {[%emt 0:00:03]} 80. Rh6 {[%emt 0:00:09]} Kc4 {[%emt 0:00:12]} 81. Rh4+ {[%emt 0:00:15]} Kb5 {[%emt 0:00:07]} 82. Kc3 {[%emt 0:00:06]} Nc5 {[%emt 0:00:06]} 83. Rh5 {[%emt 0:00:13]} Kb6 {[%emt 0:00:03]} 84. Kb4 {[%emt 0:00:16]} Na6+ {[%emt 0:00:12]} 85. Kc4 {[%emt 0:00:04]} Nc7 {[%emt 0:00:04]} 86. a4 {[%emt 0:00:41]} Na6 {[%emt 0:00:15]} 87. a5+ {[%emt 0:00:58]} Kc6 {[%emt 0:00:03]} 88. Rh6+ {[%emt 0:00:06]} Kb7 {[%emt 0:00:03]} 89. Rb6+ {[%emt 0:00:09]} Ka7 {[%emt 0:00:02]} 90. Kb5 {[%emt 0:01:35]} Nc7+ {[%emt 0:00:04]} 91. Kc6 {[%emt 0:00:11]} Ne6 {[%emt 0:00:15]} 92. Kd6 {[%emt 0:01:03]} Nd8 {[%emt 0:01:11]} 93. Kc5 {[%emt 0:01:42]} Nf7 {[%emt 0:00:37]} 94. Kb5 {[%emt 0:00:13]} Ne5 {[%emt 0:02:13]} 95. Re6 {[%emt 0:00:17]} 1-0

[Event "Icelandic Championship 2024"]
[Site "Mosfellsbaer"]
[Date "2024.04.25"]
[Round "9.5"]
[White "Stefansson, Hannes"]
[Black "Kjartansson, Gudmundur"]
[Result "0-1"]
[ECO "D35"]
[WhiteElo "2493"]
[BlackElo "2480"]
[Annotator "RC"]
[PlyCount "148"]
[EventDate "2024.04.16"]
[EventType "tourn"]
[EventCountry "ISL"]
[SourceTitle "playchess.com"]
[Source "ChessBase"]
[SourceQuality "1"]
[TimeControl "40/5400+30:1800+30"]

1. d4 {[%emt 0:00:09]} Nf6 {[%emt 0:00:26]} 2. c4 {[%emt 0:00:11]} e6 {[%emt 0:00:18]} 3. Nc3 {[%emt 0:00:21]} d5 {[%emt 0:00:45]} 4. cxd5 {[%emt 0:02:03]} exd5 {[%emt 0:00:05]} 5. Bg5 {[%emt 0:00:34]} Be7 {[%emt 0:00:26]} 6. e3 {[%emt 0:01:08]} h6 {[%emt 0:01:59]} 7. Bh4 {[%emt 0:00:49]} O-O {[%emt 0:00:03]} 8. Qc2 {[%emt 0:02:02]} c5 {[%emt 0:04:08]} 9. dxc5 {[%emt 0:07:58]} Qa5 {[%emt 0:11:20]} 10. Nf3 {[%emt 0:05:07]} Qxc5 {[%emt 0:05:14]} 11. Be2 {[%emt 0:06:11]} Nc6 {[%emt 0:03:58]} 12. Rd1 {[%emt 0:01:40]} Be6 {[%emt 0:06:31]} 13. O-O {[%emt 0:08:04]} Rfe8 {[%emt 0:03:18]} 14. a3 {[%emt 0:06:44]} Rac8 {[%emt 0:08:50]} 15. Qa4 {[%emt 0:05:42]} a6 {[%emt 0:01:37]} 16. Rd2 {[%emt 0:03:16]} Na5 {[%emt 0:17:30]} 17. Rc2 {[%emt 0:04:02]} Nc4 {[%emt 0:06:40]} 18. Qb3 {[%emt 0:05:17]} Nxe3 {[%emt 0:11:27]} 19. fxe3 {[%emt 0:02:31]} d4 {[%emt 0:00:13]} 20. Qxb7 {[%emt 0:03:05]} d3 {[%emt 0:00:14]} 21. Bxd3 {[%emt 0:02:18]} Qxe3+ {[%emt 0:00:05]} 22. Bf2 {[%emt 0:00:19]} Qxd3 {[%emt 0:00:02]} 23. Rd2 {[%emt 0:01:25]} Qc4 {[%emt 0:02:22]} 24. Bd4 {[%emt 0:05:45]} Bc5 {[%emt 0:05:55]} 25. Bxc5 {[%emt 0:04:54]} Qxc5+ {[%emt 0:00:29]} 26. Nd4 {[%emt 0:02:22]} Rcd8 {[%emt 0:03:26]} 27. Na4 {[%emt 0:05:05]} Qe5 {[%emt 0:04:15]} 28. Qb4 {[%emt 0:05:06]} a5 {[%emt 0:00:55]} 29. Qc3 {[%emt 0:00:53]} Bd7 {[%emt 0:01:42]} 30. Nc5 {[%emt 0:04:06]} Bb5 {[%emt 0:00:35]} 31. Rfd1 {[%emt 0:02:33]} Ng4 {[%emt 0:00:33]} 32. g3 {[%emt 0:00:57]} Rd5 {[%emt 0:00:35]} 33. Nxb5 {[%emt 0:01:19]} Rxd2 {[%emt 0:00:29]} 34. Qxd2 {[%emt 0:00:06]} Qxc5+ {[%emt 0:00:05]} 35. Nd4 {[%emt 0:00:05]} Re4 {[%emt 0:00:56]} 36. Qc3 {[%emt 0:01:18]} Qxc3 {[%emt 0:00:31]} 37. bxc3 {[%emt 0:00:05]} Re3 {[%emt 0:00:22]} 38. Rc1 {[%emt 0:00:38]} a4 {[%emt 0:00:30]} 39. Kg2 {[%emt 0:01:23]} Rd3 {[%emt 0:00:13]} 40. h3 {[%emt 0:01:21]} Ne3+ {[%emt 0:00:32]} 41. Kf2 {[%emt 0:30:12]} Nc4 {[%emt 0:03:56]} 42. Ne2 {[%emt 0:00:00]} Rd6 {[%emt 0:12:00]} 43. Rb1 {[%emt 0:00:00]} Rf6+ {[%emt 0:01:49]} 44. Ke1 {[%emt 0:00:00]} Rf1+ {[%emt 0:02:13]} 45. Kxf1 {[%emt 0:00:00]} Nd2+ {[%emt 0:00:02]} 46. Kf2 {[%emt 0:00:00]} Nxb1 {[%emt 0:00:02]} 47. Ke3 {[%emt 0:00:00]} Nxa3 {[%emt 0:00:56]} 48. Kd3 {[%emt 0:00:00]} Nb5 {[%emt 0:01:58]} 49. Kc4 {[%emt 0:00:00]} a3 {[%emt 0:01:16]} 50. Nc1 {[%emt 0:00:00]} Nd6+ {[%emt 0:00:31]} 51. Kb3 {[%emt 0:00:00]} Ne4 {[%emt 0:00:43]} 52. Ne2 {[%emt 0:00:00]} f5 {[%emt 0:03:25]} 53. Kxa3 {[%emt 0:00:00]} Kf7 {[%emt 0:00:03]} 54. Kb4 {[%emt 0:00:00]} Ke6 {[%emt 0:00:06]} 55. c4 {[%emt 0:00:00]} g5 {[%emt 0:00:55]} 56. Kb5 {[%emt 0:00:00]} Ke5 {[%emt 0:00:34]} 57. c5 {[%emt 0:00:38]} f4 {[%emt 0:00:15]} 58. gxf4+ {[%emt 0:00:03]} gxf4 {[%emt 0:00:03]} 59. Ng1 {[%emt 0:00:13]} Kd4 {[%emt 0:00:48]} 60. c6 {[%emt 0:00:50]} Nc3+ {[%emt 0:02:09]} 61. Kb6 {[%emt 0:00:47]} Nd5+ {[%emt 0:00:11]} 62. Kb5 {[%emt 0:00:26]} h5 {[%emt 0:02:46]} 63. h4 {[%emt 0:00:27]} Ne7 {[%emt 0:01:07]} 64. c7 {[%emt 0:00:30]} Ke3 {[%emt 0:01:03]} 65. Kc5 {[%emt 0:01:05]} f3 {[%emt 0:00:06]} 66. Nxf3 {[%emt 0:01:23]} Kxf3 {[%emt 0:00:02]} 67. Kd6 {[%emt 0:00:29]} Nc8+ {[%emt 0:00:01]} 68. Ke5 {[%emt 0:00:41]} Kg4 {[%emt 0:00:02]} 69. Ke4 {[%emt 0:00:25]} Kxh4 {[%emt 0:00:05]} 70. Kf3 {[%emt 0:01:08]} Kg5 {[%emt 0:00:07]} 71. Kg3 {[%emt 0:00:11]} h4+ {[%emt 0:00:04]} 72. Kh3 {[%emt 0:00:21]} Kh5 {[%emt 0:00:04]} 73. Kg2 {[%emt 0:00:20]} Kg4 {[%emt 0:00:03]} 74. Kh2 {[%emt 0:00:20]} h3 {[%emt 0:00:48]} 0-1